Cogmind - Beta 13 @@@ ROGUE MODE // 2024.08.03 @ 12:41:34 Player: btracker Result: Destroyed by S-27 Virus with Autogun Performance ------------- Evolutions (1) 500 Regions Visited (6) 1200 Robots Destroyed (16) 80 Value Destroyed (329) 329 Prototype IDs (1) 20 Alien Tech Used (0) 0 Bonus (0) 0 TOTAL SCORE: 2129 Bonus ------- None Cogmind --------- Core Integrity 0/400 Matter 299/300 Energy 100/100 System Corruption 2% Temperature Cool (0) Movement Core (250) Ox4 Location -6/Proximity Caves Parts ------- > --- POWER (1) -------- (None) > --- PROPULSION (4) --- (None) > --- UTILITY (2) ------ Medium Storage Unit > --- WEAPON (2) ------- CR-A16's Pointy Stick > --- INVENTORY (10) --- Ion Engine Medium Matter Pod (100) Terrain Scan Processor Seismic Detector Power Shielding Autogun Flak Cannon Makeshift Axe Peak State ------------ > --- POWER ------------ Ion Engine > --- PROPULSION ------- Light Treads Light Treads Armored Huge Wheel > --- UTILITY ---------- Medium Storage Unit Hacking Drone Bay > --- WEAPON ----------- Makeshift Axe CR-A16's Pointy Stick > --- INVENTORY -------- Ion Engine Medium Matter Pod Terrain Scan Processor Seismic Detector Power Shielding Autogun Autogun Flak Cannon [Rating: 30] Favorites ----------- Power Ion Engine Engine Ion Engine Propulsion Light Treads Treads Light Treads Leg Aluminum Leg Wheel Compact Wheel Utility Power Shielding Device Seismic Detector Storage Medium Storage Unit Protection Power Shielding Weapon Autogun Energy Gun Medium Laser Ballistic Gun Autogun Ballistic Cannon Flak Cannon Slashing Weapon Makeshift Axe Piercing Weapon CR-A16's Pointy Stick Build | -11 -10 -10 -9 -9 -7 -6 ------- Run | Yrd Mat Min Mat Min Zio Pro Slots Evolved 2 | . . . 2 . . . Power . | . . . . . . . Propulsion 2 | . . . 2 . . . Utility . | . . . . . . . Weapon . | . . . . . . . Parts Attached 32 | 8 . 6 11 . 4 3 Power 3 | 1 . 2 . . . . Engine 3 | 1 . 2 . . . . Core . | . . . . . . . Reactor . | . . . . . . . Propulsion 12 | 2 . 1 8 . . 1 Treads 6 | . . 1 5 . . . Leg 2 | 2 . . . . . . Wheel 4 | . . . 3 . . 1 Hover . | . . . . . . . Flight . | . . . . . . . Utility 7 | 2 . 2 1 . 2 . Device 4 | 1 . 1 . . 2 . Storage 2 | 1 . . 1 . . . Processor . | . . . . . . . Hackware . | . . . . . . . Protection 1 | . . 1 . . . . Artifact . | . . . . . . . Weapon 10 | 3 . 1 2 . 2 2 Energy Gun 1 | 1 . . . . . . Energy Cannon . | . . . . . . . Ballistic Gun 6 | 2 . 1 2 . . 1 Ballistic Cannon 1 | . . . . . 1 . Launcher . | . . . . . . . Special Weapon . | . . . . . . . Impact Weapon . | . . . . . . . Slashing Weapon 1 | . . . . . 1 . Piercing Weapon 1 | . . . . . . 1 Special Melee Weapon . | . . . . . . . Unidentified Prototypes 1 | . . . . . 1 . Parts Lost 11 | . . 4 . . . 7 Power 1 | . . . . . . 1 Propulsion 6 | . . 2 . . . 4 Utility 2 | . . 1 . . . 1 Weapon 2 | . . 1 . . . 1 Highest Loss Streak 7 | . . 3 . . . 7 To Critical Strikes . | . . . . . . . Average Slot Usage (%) 95 | . 100 85 100 100 100 88 Engine 11 | . 14 13 11 11 11 9 Treads 29 | . . 9 36 44 44 31 Leg 4 | . 28 8 . . . . Wheel 1 | . . . 7 . . 3 Device 4 | . 14 2 . . 3 11 Storage 12 | . 14 14 11 11 11 11 Protection 6 | . . 9 11 11 7 . Energy Gun 4 | . 14 14 . . . . Ballistic Gun 12 | . 14 11 21 22 11 2 Ballistic Cannon 4 | . . . . . 7 7 Slashing Weapon 1 | . . . . . 2 7 Naked Turns . | . . . . . . . Heaviest Build 26 | 15 15 15 22 22 26 25 Greatest Support 83 | 20 20 20 83 83 83 83 Greatest Overweight (x) . | . . . . . . . Average Overweight (x) . | . . . . . . . Largest Inventory Capacity 10 | 8 8 8 10 10 10 10 Average Capacity 9 | 7 8 8 8 10 10 10 Most Carried 10 | 8 8 8 10 10 10 10 Average Carried 8 | 5 7 5 8 9 9 9 Final Capacity 10 | 8 8 8 10 10 10 10 Final Carried 10 | 8 8 7 10 10 10 8 Class Distribution -------------------- 92% | Mutant 7% | Derelict-Mutant Dominant Class ---------------- Mutant | -10/Materials Mutant | -10/Mines Mutant | -9/Materials Mutant | -9/Mines Mutant | -7/Zion Mutant | -6/Proximity Caves Resources | -11 -10 -10 -9 -9 -7 -6 ----------- Run | Yrd Mat Min Mat Min Zio Pro Matter Collected 933 | 305 46 88 206 40 37 211 Remotely . | . . . . . . . Salvage Created 549 | 62 76 157 99 40 . 115 Parts 31 | 13 8 . 6 2 . 2 Haulers Intercepted 1 | . . . 1 . . . Recyclers Shooed . | . . . . . . . Parts Field Recycled . | . . . . . . . Retrieved Matter . | . . . . . . . Parts Self-Destructed 9 | . . . . . . 9 Prevented . | . . . . . . . Kills | -11 -10 -10 -9 -9 -7 -6 ------- Run | Yrd Mat Min Mat Min Zio Pro Combat Hostiles Destroyed 15 | . 5 5 1 . . 4 Guns 11 | . 5 5 1 . . . Cannons 4 | . . . . . . 4 Classes Destroyed 8 | 1 1 2 2 . . 2 Tunneler 4 | 4 . . . . . . Hauler 1 | . . . 1 . . . Recycler 1 | . . 1 . . . . Swarmer 5 | . 5 . . . . . Grunt 3 | . . . . . . 3 Brawler 1 | . . . . . . 1 Sentry 1 | . . . 1 . . . Assembled 5 | . . 5 . . . . Best Kill Streak 5 | 3 2 5 1 . . 4 Combat Bots Only 5 | . 2 5 1 . . 4 Max Kills in Single Turn 1 | 1 1 1 1 . . 1 Gunslinging . | . . . . . . . Exploded . | . . . . . . . Melee . | . . . . . . . Uniques/NPCs Destroyed . | . . . . . . . Combat | -11 -10 -10 -9 -9 -7 -6 -------- Run | Yrd Mat Min Mat Min Zio Pro Hostile Shots Fired 180 | . 23 34 . . . 123 Missed 52 | . 5 14 . . . 33 Damage Taken 2263 | . 149 380 . . . 1734 Core 523 | . 29 83 . . . 411 Absorbed by Shields . | . . . . . . . Redirected to Shielding 4 | . . 4 . . . . Core Remaining (%) 77 | 100 . 55 . . . . Volleys Fired 88 | 9 19 22 15 1 . 22 Largest 2 | 2 2 2 2 2 . 1 Hottest 70 | 70 70 70 46 46 . 44 Shots Fired 147 | 18 38 37 30 2 . 22 Gun 134 | 18 38 37 30 2 . 9 Cannon 13 | . . . . . . 13 Launcher . | . . . . . . . Special . | . . . . . . . Kinetic 97 | 9 19 15 30 2 . 22 Thermal 50 | 9 19 22 . . . . Explosive . | . . . . . . . Electromagnetic . | . . . . . . . Robot Hit Streak 8 | 4 5 8 5 1 . 7 Robot Miss Streak 6 | 2 4 3 6 1 . 5 Penetration Max . | . . . . . . . Secondary Targets 1 | . . 1 . . . . Max Gunslinging Chain 1 | . . 1 . . . . Shots Hit Robots 87 | 9 17 25 14 1 . 21 Core Hits 52 | 4 5 12 5 1 . 25 Critical Kills . | . . . . . . . Critical Parts Destroyed 2 | . . . 2 . . . Critical Strikes 4 | . . 1 2 . . 1 Burn 1 | . . 1 . . . . Destroy 2 | . . . 2 . . . Impale 1 | . . . . . . 1 Melee Attacks 3 | . . . . . . 3 Impact . | . . . . . . . Slashing . | . . . . . . . Piercing 3 | . . . . . . 3 Sneak Attacks . | . . . . . . . Combat Hostiles . | . . . . . . . Follow-up Attacks . | . . . . . . . Damage Inflicted 1381 | 111 209 302 217 12 . 530 Guns 953 | 111 209 293 209 12 . 119 Cannons 381 | . . . . . . 381 Explosions . | . . . . . . . Melee 30 | . . . . . . 30 Ramming 17 | . . 9 8 . . . Kinetic 974 | 37 110 106 209 12 . 500 Thermal 360 | 74 99 187 . . . . Explosive . | . . . . . . . Electromagnetic . | . . . . . . . Impact . | . . . . . . . Slashing . | . . . . . . . Piercing 30 | . . . . . . 30 Highest Corruption 2 | . . . . . . 2 Average Corruption 1 | . . . . . . 1 Corruption Purged . | . . . . . . . Corruption Blocked . | . . . . . . . Effects 1 | . . . . . . 1 Message Errors 1 | . . . . . . 1 Overload Shots . | . . . . . . . Overflow Damage 25 | . . . . . . 25 Projectiles . | . . . . . . . Explosions . | . . . . . . . Melee 25 | . . . . . . 25 Knockbacks 8 | . . . . . . 8 Impact . | . . . . . . . Kinetic 8 | . . . . . . 8 Secondary . | . . . . . . . Self-Inflicted Damage . | . . . . . . . Shots . | . . . . . . . Rammed 2 | . . 1 1 . . . Targets Rammed 2 | . . 1 1 . . . Kicked . | . . . . . . . Crushed . | . . . . . . . Highest Temperature 98 | 45 45 98 . . . 93 Average Temperature 24 | 17 18 28 . . . 29 Received Heat Transfer 723 | . . 120 . . . 603 Siege Activations . | . . . . . . . Robots Corrupted . | . . . . . . . Combat Hostiles . | . . . . . . . Parts Fried . | . . . . . . . Impact Corruptions . | . . . . . . . Robots Melted . | . . . . . . . Combat Hostiles . | . . . . . . . Parts Melted 1 | 1 . . . . . . Heat Transferred 1147 | 222 296 629 . . . . Parts Sabotaged . | . . . . . . . Parts Stolen . | . . . . . . . Parts Stripped . | . . . . . . . Power Chain Reactions . | . . . . . . . Alert | -11 -10 -10 -9 -9 -7 -6 ------- Run | Yrd Mat Min Mat Min Zio Pro Peak Influence 269 | 20 269 119 58 27 . . Initial 104 | . 13 104 . 22 . . Average 67 | 11 133 74 37 26 . . Maximum Alert Level 1 | . 1 . . . . . Low Security (%) 94 | 100 69 100 100 100 . . Level 1 5 | . 30 . . . . . Level 2 . | . . . . . . . Level 3 . | . . . . . . . Level 4 . | . . . . . . . Level 5 . | . . . . . . . High Security . | . . . . . . . Max Security . | . . . . . . . Squads Dispatched 1 | . 1 . . . . . Investigation 1 | . 1 . . . . . Extermination . | . . . . . . . Reinforcement . | . . . . . . . Assault . | . . . . . . . Garrison . | . . . . . . . Intercept . | . . . . . . . Searches Triggered . | . . . . . . . Construction Impeded . | . . . . . . . Haulers Reinforced . | . . . . . . . Active Scanning Responses . | . . . . . . . Cargo Convoy Interrupts . | . . . . . . . Stealth | -11 -10 -10 -9 -9 -7 -6 --------- Run | Yrd Mat Min Mat Min Zio Pro Distress Signals 1 | . . . 1 . . . Communications Jammed . | . . . . . . . Distress Signals . | . . . . . . . Times Spotted 37 | . 11 13 1 . . 12 Peak Tracking Total 12 | . 5 12 1 . . 6 Tactical Retreats 5 | . 3 2 . . . . Traps | -11 -10 -10 -9 -9 -7 -6 ------- Run | Yrd Mat Min Mat Min Zio Pro Traps Triggered 1 | . 1 . . . . . Indirectly . | . . . . . . . Trap Hack Attempts . | . . . . . . . Triggered . | . . . . . . . Disarmed . | . . . . . . . Reprogrammed . | . . . . . . . Reused . | . . . . . . . Traps Extracted . | . . . . . . . Installed . | . . . . . . . Triggered . | . . . . . . . Machines | -11 -10 -10 -9 -9 -7 -6 ---------- Run | Yrd Mat Min Mat Min Zio Pro Machines Disabled . | . . . . . . . Max in Single Turn . | . . . . . . . Machines Repaired . | . . . . . . . Machines Dismantled . | . . . . . . . Machines Sabotaged . | . . . . . . . Overloaded Fab Kills . | . . . . . . . Hacking | -11 -10 -10 -9 -9 -7 -6 --------- Run | Yrd Mat Min Mat Min Zio Pro Machines Accessed . | . . . . . . . Terminals . | . . . . . . . Fabricators . | . . . . . . . Repair Stations . | . . . . . . . Recycling Units . | . . . . . . . Scanalyzers . | . . . . . . . Garrison Access . | . . . . . . . Total Hacks . | . . . . . . . Successful . | . . . . . . . Failed . | . . . . . . . Catastrophic . | . . . . . . . Database Lockouts . | . . . . . . . Manual . | . . . . . . . Terminals . | . . . . . . . Fabricators . | . . . . . . . Repair Stations . | . . . . . . . Recycling Units . | . . . . . . . Scanalyzers . | . . . . . . . Garrison Access . | . . . . . . . Terminal Hacks . | . . . . . . . Fabricator Hacks . | . . . . . . . Repair Station Hacks . | . . . . . . . Recycling Unit Hacks . | . . . . . . . Scanalyzer . | . . . . . . . Garrison Access Hacks . | . . . . . . . Unauthorized Hacks . | . . . . . . . Terminals . | . . . . . . . Fabricators . | . . . . . . . Repair Stations . | . . . . . . . Recycling Units . | . . . . . . . Scanalyzers . | . . . . . . . Garrison Access . | . . . . . . . Data Cores Recovered . | . . . . . . . Used . | . . . . . . . Hacking Detections . | . . . . . . . Full Trace Events . | . . . . . . . Feedback Events . | . . . . . . . Feedback Blocked . | . . . . . . . Robot Schematics Acquired 2 | . . . . . 2 . Robots Built . | . . . . . . . Authchips . | . . . . . . . Time . | . . . . . . . Total Robot Build Rating . | . . . . . . . Part Schematics Acquired 15 | . . . . . 15 . Parts Built . | . . . . . . . Authchips . | . . . . . . . Time . | . . . . . . . Total Part Build Rating . | . . . . . . . Parts Repaired . | . . . . . . . Time . | . . . . . . . Parts Recycled . | . . . . . . . Recycled Matter . | . . . . . . . Retrieved Matter . | . . . . . . . Retrieved Components . | . . . . . . . Parts Scanalyzed . | . . . . . . . Part Schematics Acquired . | . . . . . . . Parts Damaged . | . . . . . . . Bothacking | -11 -10 -10 -9 -9 -7 -6 ------------ Run | Yrd Mat Min Mat Min Zio Pro Used RIF Installer . | . . . . . . . Robots Hacked . | . . . . . . . Non-combat . | . . . . . . . Combat . | . . . . . . . Robot Hacks Applied . | . . . . . . . Relay Couplers Released . | . . . . . . . Fabnet Peak Effective % . | . . . . . . . Robots Rewired . | . . . . . . . Allies Hacked . | . . . . . . . Hacks Repelled . | . . . . . . . Allies | -11 -10 -10 -9 -9 -7 -6 -------- Run | Yrd Mat Min Mat Min Zio Pro Total Allies 3 | . . 3 . . . . Largest Group 3 | . . 3 3 3 3 2 Highest-Rated Group 40 | . . 40 40 40 40 24 Highest-Rated Ally 16 | . . 16 16 16 16 16 Total Orders 5 | . . 5 . . . . AID 5 | . . 5 . . . . Ally Attacks 24 | . . . . . . 24 Total Damage 245 | . . . . . . 245 Kills . | . . . . . . . Allies Corrupted . | . . . . . . . Allies Melted . | . . . . . . . Intel | -11 -10 -10 -9 -9 -7 -6 ------- Run | Yrd Mat Min Mat Min Zio Pro Robot Analysis Total . | . . . . . . . Derelict Logs Recovered 2 | . . 1 . . 1 . Drone Launches . | . . . . . . . Drone Recoveries . | . . . . . . . Exploration | -11 -10 -10 -9 -9 -7 -6 ------------- Run | Yrd Mat Min Mat Min Zio Pro Turns Passed 2318 | 179 232 484 244 46 939 194 Spaces Moved 1341 | 113 109 276 137 27 579 100 Core 4 | 4 . . . . . . Treads 919 | . . 178 73 27 579 62 Legs 316 | 109 109 98 . . . . Wheels 102 | . . . 64 . . 38 Hover . | . . . . . . . Flight . | . . . . . . . Fastest Speed 50 | 50 120 120 100 160 160 100 Average Speed 145 | 117 120 145 131 160 160 137 Slowest Speed 160 | 120 120 160 160 160 160 160 Overloaded Moves . | . . . . . . . Propulsion Burnouts . | . . . . . . . Robots Hopped . | . . . . . . . Cave-ins Triggered . | . . . . . . . Exploration Rate (%) 24 | 5 24 42 9 7 63 18 Regions Visited 6 Branch Regions 4 Pre-discovered Areas 2 | . . . . . 2 . Known Exits Taken . | . . . . . . . Unknown Exits Taken 6 | 1 1 1 1 1 1 . Scrap Searched 3 | . . 1 . . 2 . Spaces Dug . | . . . . . . . Terrain Destroyed . | . . . . . . . Melee . | . . . . . . . Projectile . | . . . . . . . AOE . | . . . . . . . Terrain Rammed . | . . . . . . . Walls Destroyed . | . . . . . . . Machines Disabled . | . . . . . . . Actions | -11 -10 -10 -9 -9 -7 -6 --------- Run | Yrd Mat Min Mat Min Zio Pro Total 1555 | 137 172 320 175 29 593 129 Wait 57 | . 43 14 . . . . Move 1335 | 112 108 275 136 26 578 100 Hop . | . . . . . . . Pick Up 24 | 8 1 2 8 1 4 . Fast Attach 9 | 7 . . . . 2 . Attach 8 | . . 4 3 . . 1 Detach . | . . . . . . . Swap 15 | 1 . 2 8 . 2 2 Drop 14 | . 1 . 4 1 7 1 Fire 88 | 9 19 22 15 1 . 22 Melee 3 | . . . . . . 3 Ram . | . . . . . . . Kick . | . . . . . . . Crush 2 | . . 1 1 . . . Escape Stasis . | . . . . . . . Rewire . | . . . . . . . Trap . | . . . . . . . Miscellaneous . | . . . . . . . Route ------- -11/Scrapyard -10/Materials -10/Mines -9/Materials -9/Mines -7/Zion -6/Proximity Caves History --------- Turn | Location | Event 2 | -11/Scrapyard | Discovered new exit (range 16) 180 | -11/Scrapyard | Entered Materials 317 | -10/Materials | Build established: Mutant 388 | -10/Materials | Discovered new exit (range 15) 412 | -10/Materials | Entered Mines 482 | -10/Mines | Learned 2 Materials zone layouts 493 | -10/Mines | Assembled infested the area 591 | -10/Mines | Lost 3 parts (2n1w) 840 | -10/Mines | Assisted by bots powering up and referring to "LRC-V3" 866 | -10/Mines | Discovered new exit (range 8) 896 | -10/Mines | Entered Materials 896 | -9/Materials | Accompanied by 3 allies 896 | -9/Materials | Evolved 2 slots: Propulsion x2 969 | -9/Materials | Discovered new exit (range 16) 1140 | -9/Materials | Entered Mines 1140 | -9/Mines | Accompanied by 3 allies 1171 | -9/Mines | A Derelict revealed a hidden shortcut to a safe place 1186 | -9/Mines | Entered Zion 1186 | -7/Zion | Accompanied by 3 allies 1212 | -7/Zion | Given A8's code to call for help 1377 | -7/Zion | Learned Factory recycling unit intel 1404 | -7/Zion | Learned location of Extension (-6) 1444 | -7/Zion | Learned Factory fabricator intel 1641 | -7/Zion | Learned location of Armory (-3) 1799 | -7/Zion | Discovered new exit (range 11) 2048 | -7/Zion | Given the Hacking Drone Bay 2058 | -7/Zion | Found Prototype Device 2058 | -7/Zion | Identified Hacking Drone Bay 2079 | -7/Zion | Found CR-A16's Pointy Stick 2125 | -7/Zion | Entered Proximity Caves 2125 | -6/Proximity Caves | Accompanied by 3 allies 2242 | -6/Proximity Caves | Attracted the attention of an 0b10 base 2303 | -6/Proximity Caves | Unaware initiated a cargo recovery operation 2305 | -6/Proximity Caves | Core integrity fell below 50% 2316 | -6/Proximity Caves | Core integrity fell below 20% 2319 | -6/Proximity Caves | Destroyed by S-27 Virus with Autogun Last Messages --------------- Slug penetrates Wall. Critical hit (Burn: +37). Lgt. Treads destroyed. Slug penetrates Wall. G-50 Soldier destroyed. Acquired 45 matter. Penetrated by Slug. Lgt. Treads destroyed. Ion Engine destroyed. ALERT: Cargo recovery in progress. Unregistered derelicts vacate Proximity Caves. Critical hit (Burn: +37). Autogun destroyed. Arm. Huge Wheel destroyed. Critical hit (Burn: +37). P-60 Hacker suffers critical hit (Impale). Destroyed Shock Rifle. Hacking Drone Bay destroyed. Critical hit (Burn: +37). WQDRAYMDMQ=5 EXCNK8 Map ----- +----------------------------------------------------+ | ?????????????????????????????????????????????????? | | ?????????????????????????????????????????????????? | | ?????????????????????????????????????????????????? | | ?????????????????????????????????????????????????? | | ?????????????????????????????????????????????????? | | ?????????????????????????????????????????????????? | | ?????????????????????????????????????????????????? | | ?????????????????????????????????????????????????? | | ?????????????????????????????????????????????????? | | ?????????????????????????????????????????????????? | | ?????????????????????????????????????????????????? | | ?????????????????????????????????????????????????? | | ?????????????????????????????????????????????????? | | ?????????????????????????????????????????????????? | | ?????????????????????????????????????????????????? | | ?????????????????????????????????????????????????? | | ?????????????????????????????????????????????????? | | ?????????????????????????????????????????????????? | | ?????????????????????????????????????????????????? | | ?????????????????????????????????????????????????? | | ?????????????????????????????????????????????????? | | ?????????????????????????????????????????????????? | | ?????????????????????????????????????????????????? | | ?###????????###?###???######??###????????????????? | | ?# ######### #?# #### p## ##???????????????? | | ? ### @ ## #???????????? | | ??? ## #???????????? | | ##### g ## #?????????? | | """"# Y g #????? #?????????? | | # ##### #??????????????????? | | # ###?## #??????????????????? | | # ##?# #??????????????????? | | # ### ###s #??????????????????? | | ! # #?# ## #??????????????????? | | % "?# #?#### #? ##??????????????????? | | *"??# #????## #? ###???????????????????? | | *"??# #?????# ##? #?????????????????????? | | /#### #?????# ######?? #?????????????????????? | | %[ #?????#####??????? #?????????????????????? | | #????????????????? ?????????????????????? | | ### ###????????????????? ?????????????????????? | | #?# %!#??????????????????? ?????????????????????? | | #?# #??????????????????????????????????????????? | | ## ##??????????????????????????????????????????? | | #???????????????????????????????????????????? | | ##???????????????????????????????????????????? | | ## ##????????????????????????????????????????????? | | ?# #?????????????????????????????????????????????? | | ?# #?????????????????????????????????????????????? | | ## #####?????????????????????????????????????????? | +----------------------------------------------------+ Best States ------------- Heat Dissipation 55 Energy Generation 10 Energy Capacity 250 Matter Stores 300 Matter Capacity 300 Sight Range 16 Terrain Scan Density 10 Power Shielding 33 Evasion (%) 55 Recoil Reduction 4 Item Schematics ----------------- Hpw. Shock Rifle | -7/Zion | Archive System Guard | -7/Zion | Archive Xenon Bombardment Thruster | -7/Zion | Archive Adv. System Shield | -7/Zion | Archive Lyr. Light Armor Plating | -7/Zion | Archive Arc Thrower | -7/Zion | Archive Mak. Power Source | -7/Zion | Archive Matter Compressor | -7/Zion | Archive Gatling Laser | -7/Zion | Archive Lgt. Fission Core | -7/Zion | Archive Arm. Huge Wheel | -7/Zion | Archive Imp. Focal Shield | -7/Zion | Archive Imp. Cooling System | -7/Zion | Archive Mak. Hacking Suite | -7/Zion | Archive Magnetic Acceleration Cannon | -7/Zion | Archive Robot Schematics ------------------ A-02 Transporter | -7/Zion | Archive B-36 Bruiser | -7/Zion | Archive Fabricated ------------ Nothing Alien Tech Used ----------------- None Achievements -------------- Robot Respite Challenges ------------ None Game ------ Seed ArmageddonIonicScreen Manual? 0 Play Time 00:22:21 Cumulative 2.8 hours Start 2024.08.03 @ 12:19:00 End 2024.08.03 @ 12:41:34 Sessions 1 Manual Loads 0 Difficulty Rogue Special Mode None Game No. 9 Rogue 9 Adventurer 0 Explorer 0 Win Type - Total 0 Types 0/0/0/0/0/0/0/0/0 Lore% 7 Gallery% 6 Achievement% 8 Wizard Run 0 Options --------- Layout 1 ASCII 0 Keyboard 0 Movement Mouse Keybinds 0 Fullscreen 1 Font 24/Smallcaps Map View 50x35 Zoom Use 0% Tactical HUD 0 Map Filters NONE Filters NONE Steam 1 RUN: 9b21e119-b4d5-4ec1-ad3f-86866296a25d